Cogmind - Beta 15 @@@ ROGUE MODE // 2025.07.28 @ 01:59:27 // AFD2020/Player2 Player: bugsniper Result: Core destroyed Performance ------------- Evolutions (0) 0 Regions Visited (2) 400 Robots Destroyed (21) 105 Value Destroyed (301) 301 Prototype IDs (2) 40 Alien Tech Used (0) 0 Bonus (-38) -38 TOTAL SCORE: 808 Bonus ------- Follower Combat Kills 135 Friendly Fire -173 Cogmind --------- Core Integrity 0/250 Matter 265/300 Energy 125/125 System Corruption 0% Temperature Cool (6) Movement Treading (160) Location -10/Subcaves Parts ------- > --- POWER (1) -------- Light Ion Engine > --- PROPULSION (2) --- Light Treads Spiked Treads > --- UTILITY (2) ------ Improved Heat Sink Medium Storage Unit > --- WEAPON (2) ------- Grenade Launcher > --- INVENTORY (10) --- Light Ion Engine Subdweller Power Source Light Treads Wheel Compact Wheel Small Storage Unit Particle Gun Beam Cannon Beam Cannon Battle Cannon Peak State ------------ > --- POWER ------------ Light Ion Engine > --- PROPULSION ------- Light Treads Spiked Treads > --- UTILITY ---------- Improved Heat Sink Medium Storage Unit > --- WEAPON ----------- Grenade Launcher Grenade Launcher > --- INVENTORY -------- Light Ion Engine Subdweller Power Source Light Treads Wheel Compact Wheel Small Storage Unit Particle Gun Beam Cannon Beam Cannon Battle Cannon [Rating: 11] Favorites ----------- Power Ion Engine Engine Ion Engine Propulsion Light Treads Treads Light Treads Leg Aluminum Leg Utility Improved Heat Sink Device Improved Heat Sink Storage Medium Storage Unit Weapon Beam Cannon Energy Gun EM Pulse Gun Energy Cannon Beam Cannon Ballistic Gun Light Assault Rifle Launcher Grenade Launcher Build | -11 -10 -10 ------- Run | Yrd Mat Sub Slots Evolved . | . . . Power . | . . . Propulsion . | . . . Utility . | . . . Weapon . | . . . Parts Attached 12 | . 10 2 Power 1 | . 1 . Engine 1 | . 1 . Core . | . . . Reactor . | . . . Propulsion 3 | . 2 1 Treads 3 | . 2 1 Leg . | . . . Wheel . | . . . Hover . | . . . Flight . | . . . Utility 2 | . 2 . Device 1 | . 1 . Storage 1 | . 1 . Processor . | . . . Hackware . | . . . Protection . | . . . Artifact . | . . . Weapon 6 | . 5 1 Energy Gun 1 | . 1 . Energy Cannon 2 | . 2 . Ballistic Gun 1 | . 1 . Ballistic Cannon . | . . . Launcher 2 | . 1 1 Special Weapon . | . . . Impact Weapon . | . . . Slashing Weapon . | . . . Piercing Weapon . | . . . Special Melee Weapon . | . . . Unidentified Prototypes . | . . . Parts Lost 4 | . 2 2 Power . | . . . Propulsion 1 | . . 1 Utility . | . . . Weapon 3 | . 2 1 Highest Loss Streak 1 | . 1 1 To Critical Strikes . | . . . Average Backups 8 | . 7 10 Power 1 | . 1 1 Propulsion 4 | . 4 3 Utility . | . . 1 Weapon 2 | . 1 3 Tool/Special . | . . . Unused Backups 16 | . 6 10 Power 3 | . 1 2 Propulsion 8 | . 3 5 Utility 1 | . . 1 Weapon 4 | . 2 2 Tool/Special . | . . . Average Slot Usage (%) 93 | . 93 93 Engine 14 | . 14 14 Treads 19 | . 18 22 Leg 7 | . 9 . Device 10 | . 9 14 Storage 14 | . 14 14 Energy Gun 5 | . 7 . Energy Cannon 13 | . 16 2 Ballistic Gun 1 | . 2 . Launcher 5 | . . 24 Peak Build Rating 11 | . 10 11 Average Rating 8 | . 8 9 On Entrance 7 | 6 6 10 Naked Turns . | . . . Heaviest Build 22 | 12 22 20 Greatest Support 40 | 20 40 40 Greatest Overweight (x) 1 | . 1 . Average Overweight (x) . | . . . Largest Inventory Capacity 10 | . 10 10 Average Capacity 9 | . 9 10 Most Carried 10 | . 10 10 Average Carried 8 | . 7 9 Final Capacity 10 | 8 10 10 Final Carried 10 | 6 10 10 Class Distribution -------------------- 50% | Mutant 49% | Scavenger-Mutant Dominant Class ---------------- Mutant | -10/Materials Scavenger-Mutant | -10/Subcaves Resources | -11 -10 -10 ----------- Run | Yrd Mat Sub Matter Collected 423 | 200 118 105 Remotely . | . . . Salvage Created 645 | . 503 142 Parts 47 | . 30 17 Haulers Intercepted 2 | . 2 . Recyclers Shooed . | . . . Parts Field Recycled . | . . . Retrieved Matter . | . . . Parts Self-Destructed 19 | . . 19 Prevented . | . . . Kills | -11 -10 -10 ------- Run | Yrd Mat Sub Combat Hostiles Destroyed 11 | . 5 6 Cannons 4 | . 3 1 AOE 7 | . 2 5 Classes Destroyed 7 | . 6 1 Worker 2 | . 2 . Builder 2 | . 2 . Hauler 2 | . 2 . Recycler 4 | . 4 . Swarmer 6 | . 3 3 Grunt 2 | . 2 . Subdweller 3 | . . 3 Best Kill Streak 3 | . 3 3 Combat Bots Only 3 | . 2 3 Max Kills in Single Turn 3 | . 3 3 Gunslinging . | . . . Exploded 3 | . 2 3 Melee . | . . . Uniques/NPCs Destroyed . | . . . Combat | -11 -10 -10 -------- Run | Yrd Mat Sub Hostile Shots Fired 53 | . 35 18 Missed 18 | . 12 6 Hits 35 | . 23 12 Projectile 35 | . 23 12 AOE 1 | . . 1 Damage Taken 753 | . 472 281 Core 164 | . 91 73 Absorbed by Shields . | . . . Core Remaining (%) 100 | 100 . . Volleys Fired 44 | . 38 6 Largest 2 | . 2 2 Hottest 120 | . 120 120 Shots Fired 77 | . 67 10 Gun 30 | . 30 . Cannon 38 | . 36 2 Launcher 9 | . 1 8 Special . | . . . Kinetic 3 | . 3 . Thermal 44 | . 42 2 Explosive 9 | . 1 8 Electromagnetic 21 | . 21 . Robot Hit Streak 11 | . 11 3 Robot Miss Streak 7 | . 7 . Penetration Max . | . . . Secondary Targets . | . . . Shots Hit Robots 42 | . 40 2 Core Hits 30 | . 19 11 Critical Kills . | . . . Critical Parts Destroyed . | . . . Critical Strikes 1 | . 1 . Corrupt 1 | . 1 . Melee Attacks . | . . . Impact . | . . . Slashing . | . . . Piercing . | . . . Sneak Attacks . | . . . Combat Hostiles . | . . . Follow-up Attacks . | . . . Damage Inflicted 1305 | . 866 439 Guns 269 | . 269 . Cannons 350 | . 333 17 Explosions 686 | . 264 422 Melee . | . . . Ramming . | . . . Kinetic 27 | . 27 . Thermal 467 | . 450 17 Explosive 603 | . 181 422 Electromagnetic 208 | . 208 . Impact . | . . . Slashing . | . . . Piercing . | . . . Highest Corruption . | . . . Average Corruption . | . . . Corruption Purged . | . . . Corruption Blocked . | . . . Overload Shots . | . . . Overflow Damage 6 | . 6 . Projectiles 3 | . 3 . Explosions 3 | . 3 . Melee . | . . . Knockbacks . | . . . Impact . | . . . Kinetic . | . . . Secondary . | . . . Self-Inflicted Damage 127 | . 67 60 Shots 5 | . 2 3 Rammed 1 | . 1 . Targets Rammed 1 | . 1 . Kicked . | . . . Crushed . | . . . Highest Temperature 103 | . 103 . Average Temperature 32 | . 32 . Received Heat Transfer 93 | . 63 30 Siege Activations . | . . . Martial Activations . | . . . Shielding Activations . | . . . Robots Disrupted . | . . . Combat Hostiles . | . . . Robots Corrupted . | . . . Combat Hostiles . | . . . Parts Fried . | . . . Impact Corruptions . | . . . Robots Melted . | . . . Combat Hostiles . | . . . Parts Melted 2 | . 2 . Heat Transferred 915 | . 878 37 Parts Sabotaged . | . . . Parts Stolen . | . . . Parts Stripped . | . . . Power Chain Reactions 1 | . 1 . Alert | -11 -10 -10 ------- Run | Yrd Mat Sub Maximum Alert Level . | . . . Low Security (%) 100 | . 100 . Level 1 . | . . . Level 2 . | . . . Level 3 . | . . . Level 4 . | . . . Level 5 . | . . . High Security . | . . . Max Security . | . . . Peak Influence 142 | . 142 . Initial . | . . . Average 48 | . 48 . Influence Increases 641 | . 529 112 Destroy 0b10 Robot/C 340 | . 260 80 Destroy 0b10 Robot/NC 60 | . 60 . Destroy Leader 68 | . 58 10 Allied During Kill 109 | . 87 22 Successful Hack 32 | . 32 . Destroy Structure 32 | . 32 . Influence Decreases 641 | . 509 132 Entered New Map 10 | . . 10 Time Decay 601 | . 479 122 Lost Part 30 | . 30 . Squads Dispatched . | . . . Investigation . | . . . Extermination . | . . . Reinforcement . | . . . Assault . | . . . Garrison . | . . . Intercept . | . . . Searches Triggered . | . . . Construction Impeded . | . . . Haulers Reinforced . | . . . Active Scanning Responses . | . . . Cargo Convoy Interrupts . | . . . Stealth | -11 -10 -10 --------- Run | Yrd Mat Sub Distress Signals . | . . . Communications Jammed . | . . . Distress Signals . | . . . Times Spotted 29 | . 18 11 Peak Tracking Total 5 | . 3 5 Tactical Retreats . | . . . Traps | -11 -10 -10 ------- Run | Yrd Mat Sub Traps Triggered 1 | . 1 . Indirectly . | . . . Trap Hack Attempts . | . . . Triggered . | . . . Disarmed . | . . . Reprogrammed . | . . . Reused . | . . . Traps Extracted . | . . . Installed . | . . . Triggered . | . . . Machines | -11 -10 -10 ---------- Run | Yrd Mat Sub Machines Disabled . | . . . Max in Single Turn . | . . . Machines Repaired . | . . . Machines Dismantled . | . . . Machines Sabotaged . | . . . Overloaded Fab Kills . | . . . Hacking | -11 -10 -10 --------- Run | Yrd Mat Sub Machines Accessed 7 | . 7 . Terminals 6 | . 6 . Fabricators . | . . . Repair Stations . | . . . Recycling Units 1 | . 1 . Scanalyzers . | . . . Garrison Access . | . . . Total Hacks 14 | . 14 . Successful 11 | . 11 . Failed 3 | . 3 . Catastrophic . | . . . Database Lockouts . | . . . Manual 6 | . 6 . Terminals 13 | . 13 . Fabricators . | . . . Repair Stations . | . . . Recycling Units 1 | . 1 . Scanalyzers . | . . . Garrison Access . | . . . Terminal Hacks 7 | . 7 . Prototype ID Bank 1 | . 1 . Branch Access Points 1 | . 1 . Emergency Access Points 1 | . 1 . Locate Traps 2 | . 2 . Zone Layout 2 | . 2 . Fabricator Hacks . | . . . Repair Station Hacks . | . . . Recycling Unit Hacks 1 | . 1 . Retrieve Components 1 | . 1 . Scanalyzer . | . . . Garrison Access Hacks . | . . . Unauthorized Hacks 3 | . 3 . Terminals 3 | . 3 . Botnet 2 | . 2 . Disrupt 1 | . 1 . Fabricators . | . . . Repair Stations . | . . . Recycling Units . | . . . Scanalyzers . | . . . Garrison Access . | . . . Data Cores Recovered . | . . . Used . | . . . Hacking Detections 4 | . 4 . Full Trace Events . | . . . Feedback Events . | . . . Feedback Blocked . | . . . Robot Schematics Acquired . | . . . Robots Built . | . . . Authchips . | . . . Time . | . . . Total Robot Build Rating . | . . . Part Schematics Acquired . | . . . Parts Built . | . . . Authchips . | . . . Time . | . . . Total Part Build Rating . | . . . Parts Repaired . | . . . Time . | . . . Parts Recycled . | . . . Recycled Matter . | . . . Retrieved Matter . | . . . Retrieved Components 10 | . 10 . Parts Scanalyzed . | . . . Part Schematics Acquired . | . . . Parts Damaged . | . . . Bothacking | -11 -10 -10 ------------ Run | Yrd Mat Sub Used RIF Installer . | . . . Robots Hacked . | . . . Non-combat . | . . . Combat . | . . . Robot Hacks Applied . | . . . Relay Couplers Released . | . . . Fabnet Peak Effective % . | . . . Robots Rewired . | . . . Allies Hacked . | . . . Hacks Repelled . | . . . Allies | -11 -10 -10 -------- Run | Yrd Mat Sub Total Allies 1 | . 1 . Largest Group 1 | . 1 1 Highest-Rated Group 59 | . 59 59 Highest-Rated Ally 59 | . 59 59 Total Orders . | . . . Ally Attacks 35 | . 29 6 Total Damage 656 | . 538 118 Kills 11 | . 10 1 Allies Corrupted . | . . . Allies Melted . | . . . Intel | -11 -10 -10 ------- Run | Yrd Mat Sub Active Infowar (turns) . | . . . Robot Analysis Total . | . . . Derelict Logs Recovered . | . . . Drone Launches . | . . . Drone Recoveries . | . . . Exploration | -11 -10 -10 ------------- Run | Yrd Mat Sub Turns Passed 2481 | . 1902 579 Spaces Moved 1533 | 1 1190 342 Core . | . . . Treads 1065 | . 723 342 Legs 468 | 1 467 . Wheels . | . . . Hover . | . . . Flight . | . . . Fastest Speed 120 | 120 120 160 Average Speed 147 | 120 144 160 Slowest Speed 190 | 120 190 160 Overloaded Moves . | . . . Propulsion Burnouts . | . . . Robots Hopped . | . . . Potential Cave-ins . | . . . Cave-ins Triggered . | . . . Exploration Rate (%) 41 | 2 95 26 Regions Visited 2 Branch Regions 1 Pre-discovered Areas . | . . . Known Exits Taken . | . . . Unknown Exits Taken 2 | 1 1 . Scrap Searched . | . . . Spaces Dug 18 | . . 18 Terrain Destroyed 59 | . 13 46 Melee . | . . . Projectile . | . . . AOE 59 | . 13 46 Terrain Rammed . | . . . Walls Destroyed . | . . . Machines Disabled . | . . . Actions | -11 -10 -10 --------- Run | Yrd Mat Sub Total 1664 | . 1303 361 Wait 54 | . 52 2 Move 1531 | . 1189 342 Hop . | . . . Pick Up 8 | . 6 2 Fast Attach 6 | . 5 1 Attach 1 | . 1 . Detach . | . . . Swap 11 | . 5 6 Drop 8 | . 6 2 Fire 44 | . 38 6 Melee . | . . . Ram . | . . . Kick . | . . . Crush 1 | . 1 . Escape Stasis . | . . . Rewire . | . . . Trap . | . . . Miscellaneous . | . . . Route ------- -11/Scrapyard -10/Materials (discovered 6 exits: [*Mat x3] / *Min x2 / [*Sub]) -10/Subcaves (discovered 1 exit: [*Mat]) History --------- Turn | Location | Event 1 | -11/Scrapyard | Discovered new exit (range 0) 1 | -11/Scrapyard | Entered Materials 168 | -10/Materials | Identified exit to Mines 316 | -10/Materials | Build established: Mutant 564 | -10/Materials | Discovered new exit (range 9) 786 | -10/Materials | Discovered new exit (range 6) 945 | -10/Materials | Discovered new exit (range 9) 1130 | -10/Materials | Discovered new exit (range 15) 1554 | -10/Materials | Build established: Scavenger-Mutant 1622 | -10/Materials | Core integrity fell below 50% 1903 | -10/Materials | Entered Subcaves 2044 | -10/Subcaves | Core integrity fell below 20% 2233 | -10/Subcaves | Discovered new exit (range 11) 2479 | -10/Subcaves | Ambushed by Subdweller buried in earth 2479 | -10/Subcaves | Ambushed by Subdweller buried in earth 2479 | -10/Subcaves | Ambushed by Subdweller buried in earth 2482 | -10/Subcaves | Core destroyed Last Messages --------------- 02187_ Acquired 2 matter. 02225_ Dropped Com. Wheel. 02226_ Acquired Battle Cannon. 02233_ EXIT=FOUND 02254_ Acquired Spk. Treads. 02419_ Subatomizers dissect the Lgt. Ion Engine, destroying it. 02436_ Acquired 10 matter. 02470_ VT-VTD(R) destroyed. 02471_ MG-ILN(R): "ARGHSUB!" 02471_ Subatomizers dissect the Disposable Heat Sink. 02472_ Grenade Launcher destroyed. 02477_ MG-ILN(R) suffers critical hit (Burn). 02480_ FK-N0A(R): "ARGHSUB!" 02480_ JR-3MQ(R): "HIDIE!" 02480_ IV-KXN(R): "NAT20!" 02480_ JR-3MQ(R) destroyed. 02481_ Subatomizers dissect the Sub. Power Source. Map ----- +----------------------------------------------------+ | ?????????????????????????????????????????????????? | | ?????????????????????????????????????????????????? | | ?????????????????????????????????????????????????? | | ?????????????????????????????????????????????????? | | ?????????????????????????????????????????????????? | | ?????????????????????????????????????????????????? | | ?????????????????????????????????????????????????? | | ?????????????????????????????????????????????????? | | ?????????????????????????????????????????????????? | | ?????????????????????????????????????????????????? | | ????????????????????????;? ?????????????????????? | | ????????????????????????;? ;#???????????????????? | | ??????????????????????? ;? ;???????????????????? | | ?????????????????????### ? ##??????????????????? | | ????????????????????## # # #??????????????????? | | ????????????????????? & ###????????????????? | | ????????????????????? !%] ?????????????????? | | ?????????????????????? ! ?????????????????? | | ?????????????????????? ??????????????????? | | ??????????????????????# R ???????????????????? | | ?????????####?? "?"""?# R #???????????????????? | | #???????## ##? """""?# ###?????????????????? | | ###????## #### """## #?????????????????? | | #???## ## " #; R #?????????????????? | | ##### #??# ; #?????????????????? | | #???# #;@@R*% #?????????????????? | | #####????# #; ! #?????????????????? | | # ###???????## #; #?????????????????? | | ## ##?????????# # ;####?????????????????? | | ?## ##???????#### ##????????????????????? | | ??##########????# # #????????????????????? | | ???##### ###### # ##????????????????????? | | ??## # # # ####?????????????????????? | | #?# " # ##????????????????????????? | | ##?# ### " # # # # #?????????????????????????? | | ### "##" ######## #?????????????????????????? | | #?# """" """##??## ?????????????????????????? | | ### " ""#???# ##????????????????????????? | | ?# % """#??? #?????????????????????????? | | ?# """"#?? ##?????????????????????????? | | ?# " """""""??? #??????????????????????????? | | ?# """""## "" ??? ??????????????????????????? | | ?# "## # #? ""?? ??????????????????????????? | | ?# ########?# ""?? ??????????????????????????? | | ## ##?????????# #??# ??????????????????????????? | | # #???????????##??####??????????????????????????? | | #?????????????????????????????????????????????? | | #?????????????????????????????????????????????? | | #?????????????????????????????????????????????? | | ##????????????????????????????????????????????? | +----------------------------------------------------+ Best States ------------- Heat Dissipation 39 Energy Generation 10 Energy Capacity 250 Matter Stores 300 Matter Capacity 300 Sight Range 16 Terrain Scan Density 10 Evasion (%) 55 Recoil Reduction 2 Item Schematics ----------------- None Robot Schematics ------------------ None Fabricated ------------ Nothing Repaired ---------- Nothing Alien Tech Used ----------------- None Achievements -------------- None Challenges ------------ None Player 2 | -11 -10 -10 ---------- Run | Yrd Mat Sub Slots Evolved . | . . . Power . | . . . Propulsion . | . . . Utility . | . . . Weapon . | . . . Parts Attached 23 | . 22 1 Parts Lost 2 | . 2 . Damage Taken 537 | . 259 278 Core 102 | . 61 41 Player 2/Cogmind (%) 38 | . 40 35 Absorbed by Shields . | . . . Damage Inflicted 656 | . 538 118 Player 2/Cogmind (%) 33 | . 38 21 Combat Hostiles Destroyed 9 | . 8 1 Player 2/Cogmind (%) 45 | . 61 14 Game ------ Seed BlastWeldingNetwork Manual? 0 Play Time 00:19:47 Cumulative 421.6 hours Start 2025.07.28 @ 01:42:39 End 2025.07.28 @ 01:59:27 Sessions 1 Manual Loads 0 Difficulty Rogue Special Mode AFD2020/Player2 Game No. 237 Rogue 237 Adventurer 0 Explorer 0 Win Type - Total 11 Types 10/0/1/0/0/0/0/0/0/0 Lore% 46 Gallery% 64 Achievement% 53 Wizard Run 0 Options --------- Layout 1 ASCII 0 Keyboard 0 Movement Numpad Keybinds 0 Fullscreen 1 Font 24/Smallcaps Map View 50x35 Zoom Use 0% Tactical HUD 1 Map Filters NONE Filters NONE Steam 1 RUN: e942854d-73a9-4f73-8026-8383d1be55de